bitfinex/quotes_SOLUSD_20250724
["timestamp","ask_amount","ask_price","bid_price","bid_amount"]
[1753376323002,39.1,185.94,185.93,8.8903085]
[1753376323306,39.1,185.94,185.93,14.2686767]
[1753376323599,49.1,185.96,185.93,14.2686767]
[1753376323907,49.1,185.96,185.95,8.8903085]
[1753376324294,5.37778972,185.95,185.93,8.8903085]
[1753376324486,39.79,185.94,185.9,0.28432314]
[1753376324804,39.1,185.94,185.93,8.8903085]
[1753376325010,39.1,185.94,185.93,9.17463164]
[1753376325301,10.0,186.03,185.94,17.06900711]
[1753376325497,15.40520148,186.04,186.02,8.8903085]
[1753376325810,44.50520148,186.04,186.03,8.8903085]
[1753376326103,54.50520148,186.04,186.03,8.8903085]
[1753376326402,15.37557767,186.03,186.02,8.8903085]
[1753376326596,15.37557767,186.03,185.95,5.66193807]
[1753376326597,10.0,186.01,185.99,8.8903085]
[1753376326805,39.77,186.0,185.99,8.8903085]
[1753376327309,39.08,186.0,185.99,8.8903085]
[1753376328303,39.77,186.0,185.99,8.8903085]
[1753376328476,45.14634408,186.0,185.99,8.8903085]
[1753376328677,45.14634408,186.0,185.98,8.8903085]
[1753376328678,10.0,185.99,185.98,8.8903085]
[1753376329001,10.69,185.99,185.98,8.8903085]
[1753376330282,0.69,185.99,185.98,8.8903085]
[1753376330482,10.69,185.99,185.98,8.8903085]
[1753376330700,10.0,186.02,185.98,8.8903085]
[1753376330915,39.06,186.01,185.97,0.28432314]
[1753376331203,39.06,186.01,186.0,25.67499247]
[1753376331382,0.69,186.03,186.0,25.67499247]
[1753376331578,39.06,186.03,186.02,8.8903085]
[1753376331780,0.03,186.04,186.02,8.8903085]
[1753376332085,0.03,186.04,186.02,16.78468397]
[1753376332281,0.03,186.04,186.02,22.16044963]
[1753376332502,0.03,186.04,186.03,9.17463164]
[1753376332708,0.03,186.04,186.03,26.44931561]
[1753376334183,0.03,186.04,186.03,25.95931561]
[1753376334387,0.03,186.04,186.03,31.33479268]
[1753376334599,0.03,186.04,186.03,31.82479268]
[1753376335105,0.03,186.04,186.03,31.33479268]
[1753376335608,0.03,186.04,186.03,31.82479268]
[1753376335801,0.03,186.04,186.03,22.93448418]
[1753376338303,0.03,186.04,186.03,17.06900711]
[1753376338615,0.03,186.04,186.03,22.44448418]
[1753376339215,0.03,186.04,186.03,22.93448418]
[1753376340403,0.03,186.04,186.03,17.06900711]
[1753376340593,0.03,186.04,186.03,22.44448418]
[1753376341099,0.03,186.04,186.03,17.06900711]
[1753376342510,0.03,186.04,186.03,16.78468397]
[1753376342885,0.03,186.04,186.03,17.06900711]
[1753376343996,0.03,186.04,186.03,23.47203188]
[1753376344495,0.03,186.04,186.03,17.60655481]
[1753376344715,10.0,186.03,185.97,5.37721137]
[1753376345011,10.68,186.03,185.99,0.28432314]
[1753376345714,10.0,186.03,185.99,0.14216157]
[1753376345893,10.0,186.01,185.99,0.14216157]
[1753376346094,10.68,186.01,185.99,0.14216157]
[1753376346608,10.68,186.01,185.98,0.14216157]
[1753376346801,0.68,186.0,185.98,0.14216157]
[1753376347326,0.68,186.0,185.97,0.14216157]
[1753376347607,0.68,186.0,185.97,0.28432314]
[1753376347823,0.68,186.0,185.97,5.66147266]
[1753376348318,0.68,186.0,185.97,0.28432314]
[1753376349091,10.0,186.01,185.97,0.28432314]
[1753376349308,10.68,186.01,185.97,0.28432314]
[1753376349906,0.68,186.01,185.97,5.66149303]
[1753376351113,10.0,186.02,185.98,0.49]
[1753376351495,10.0,186.02,185.97,5.66149303]
[1753376351699,10.0,186.01,185.97,5.66149303]
[1753376351899,0.68,186.01,185.97,5.66149303]
[1753376352094,10.0,186.03,185.98,0.49]
[1753376352296,0.03,186.04,186.01,22.88428397]
[1753376352609,0.03,186.04,186.03,17.06900711]
[1753376352806,0.03,186.04,186.03,56.06900711]
[1753376353018,0.03,186.04,186.03,61.44448418]
[1753376353225,0.03,186.04,186.03,61.93448418]
[1753376353712,0.03,186.04,186.03,63.51508418]
[1753376359834,1e-08,186.04,186.03,24.51508418]
[1753376360002,1e-08,186.04,186.03,63.49508418]
[1753376360321,1e-08,186.04,186.03,50.51508418]
[1753376360526,1e-08,186.04,186.03,89.35292261]
[1753376360902,1e-08,186.04,186.03,63.00508418]
[1753376361098,1e-08,186.04,186.03,24.02508418]
[1753376361316,1e-08,186.04,186.03,63.00508418]
[1753376363933,1e-08,186.04,186.03,64.03263188]
[1753376366416,1e-08,186.04,186.03,56.04900711]
[1753376366645,0.68000001,186.04,185.96,6.2552]
[1753376366806,0.68000001,186.04,185.97,38.98]
[1753376367157,0.68000001,186.04,185.98,16.78468397]
[1753376367335,6.05521663,186.04,185.98,22.16145695]
[1753376367630,6.05521663,186.04,185.97,38.98]
[1753376367631,10.0,186.02,185.97,38.98]
[1753376367829,0.67,186.01,185.98,0.28432314]
[1753376368131,10.0,186.0,185.95,16.78468397]
[1753376368522,0.67,185.99,185.96,0.28432314]
[1753376369837,16.04672492,185.99,185.89,0.49]
[1753376370022,10.0,185.96,185.9,38.98]
[1753376370337,0.67,185.95,185.91,0.28432314]
[1753376370635,0.67,185.94,185.9,38.98]
[1753376370927,0.67,185.93,185.9,38.98]
[1753376371134,0.67,185.92,185.91,0.28432314]
[1753376371321,0.67,185.92,185.9,16.78468397]
[1753376371723,0.67,185.92,185.91,0.28432314]
[1753376372119,0.67,185.92,185.9,16.78468397]
[1753376372120,0.67,185.92,185.83,0.49]
[1753376372322,0.67,185.92,185.85,16.78468397]
[1753376372524,0.67,185.92,185.86,0.28432314]
[1753376372751,0.67,185.92,185.86,0.14216157]
[1753376373036,0.67,185.92,185.87,5.38010437]
[1753376373238,0.67,185.91,185.87,5.38010437]
[1753376373413,5.37814154,185.94,185.87,5.38010437]
[1753376373615,0.67,185.9,185.87,5.38010437]
[1753376374032,10.0,185.93,185.87,5.87010437]
[1753376374222,10.67,185.94,185.89,0.28432314]
[1753376374425,10.0,185.93,185.89,0.28432314]
[1753376374662,10.67,185.93,185.89,0.28432314]
[1753376375236,0.67,185.93,185.89,5.66374796]
[1753376375840,10.67,185.93,185.89,5.66374796]
[1753376376333,10.67,185.93,185.9,16.78468397]
[1753376376536,10.0,185.94,185.91,0.28432314]
[1753376376933,10.67,185.93,185.91,0.28432314]
[1753376377143,0.67,185.92,185.91,0.28432314]
[1753376381045,0.67,185.92,185.91,5.66326994]
[1753376381259,10.67,185.96,185.92,0.28432314]
[1753376381548,10.67,185.99,185.92,17.55900711]
[1753376381946,10.0,186.0,185.95,0.28432314]
[1753376382434,0.67,186.01,185.96,16.78468397]
[1753376382638,10.67,186.01,185.97,0.28432314]
[1753376383150,0.67,186.01,185.99,0.28432314]
[1753376383448,10.67,186.01,185.99,0.28432314]
[1753376383745,0.67000001,186.04,185.99,0.28432314]
[1753376384253,0.67000001,186.04,186.01,0.28432314]
[1753376384749,1e-08,186.04,186.01,0.28432314]
[1753376385145,10.00000001,186.04,186.02,5.37576604]
[1753376385336,10.00000001,186.04,186.01,0.28432314]
[1753376386552,10.67000001,186.04,186.01,0.28432314]
[1753376386845,10.67000001,186.04,185.99,0.28432314]
[1753376387246,0.67,186.03,185.99,0.28432314]
[1753376388057,0.67,186.03,186.01,17.06900711]
[1753376388362,0.67,186.03,186.01,0.28432314]
[1753376389433,1e-08,186.04,186.01,6.19792434]
[1753376389690,1e-08,186.04,186.01,6.68792434]
[1753376390148,1e-08,186.04,186.03,22.44448418]
[1753376390449,1e-08,186.04,186.03,61.92203188]
[1753376391453,1e-08,186.04,186.03,17.60655481]
[1753376391756,10.67000001,186.04,186.0,38.94]
[1753376391952,10.67000001,186.04,185.98,16.78468397]
[1753376391953,10.00000001,186.04,185.99,0.28432314]
[1753376392157,0.67,186.03,186.0,17.06900711]
[1753376392330,10.00000001,186.04,186.0,17.06900711]
[1753376392663,0.67,186.02,185.98,16.78468397]
[1753376392854,10.0,186.0,185.98,16.78468397]
[1753376393032,10.0,186.0,185.99,0.28432314]
[1753376393446,10.0,186.02,185.99,0.28432314]
[1753376393650,10.67,186.03,185.99,0.28432314]
[1753376393957,0.67,186.01,185.99,0.28432314]
[1753376394960,0.67,186.0,185.99,0.28432314]
[1753376395961,10.67,186.02,185.99,0.28432314]
[1753376396162,0.67,186.01,185.99,0.28432314]
[1753376397437,0.65,186.0,185.99,0.28432314]
[1753376397633,10.0,186.03,185.99,22.44564026]
[1753376397851,0.65,186.03,186.0,0.28432314]
[1753376398167,10.00000001,186.04,186.0,0.28432314]
[1753376398354,10.65000001,186.04,186.0,0.28432314]
[1753376399152,10.65000001,186.04,186.0,5.66041483]
[1753376399538,10.00000001,186.04,186.0,5.66041483]
[1753376399760,0.65,186.03,186.0,5.66041483]
[1753376400150,1e-08,186.04,186.0,6.15041483]
[1753376400347,1e-08,186.04,186.03,0.28432314]
[1753376400545,1e-08,186.04,186.03,17.60655481]
[1753376400766,1e-08,186.04,186.03,17.06900711]
[1753376400936,1e-08,186.04,186.03,18.09655481]
[1753376401264,1e-08,186.04,186.03,55.98900711]
[1753376401470,1e-08,186.04,186.03,17.06900711]
[1753376401643,10.0,186.03,185.99,0.06]
[1753376401964,6.02521365,186.04,185.99,0.06]
[1753376401965,10.65,186.02,185.99,0.06]
[1753376402571,10.65,186.01,185.99,0.06]
[1753376402974,0.65,186.0,185.99,0.06]
[1753376403339,10.65,186.0,185.99,0.06]
[1753376403543,49.57,186.0,185.99,0.06]
[1753376403848,75.57,186.0,185.99,0.06]
[1753376404152,49.57,186.0,185.99,0.06]
[1753376404364,54.94634408,186.0,185.99,0.06]
[1753376410474,54.94634408,186.0,185.99,1e-08]
[1753376411672,54.29634408,186.0,185.99,1e-08]
[1753376411864,54.94634408,186.0,185.99,1e-08]
[1753376413579,57.61838838,186.0,185.99,1e-08]
[1753376414056,16.02634408,186.0,185.99,1e-08]
[1753376414258,54.94634408,186.0,185.99,1e-08]
[1753376416483,10.0,186.0,185.99,1e-08]
[1753376416797,1e-08,186.04,186.0,7.7455]
[1753376417092,1e-08,186.04,186.01,17.55900711]
[1753376417591,10.0,186.03,186.01,17.06900711]
[1753376417777,10.0,186.02,185.99,1e-08]
[1753376417968,10.0,186.02,185.99,5.37649298]
[1753376418172,1e-08,186.04,185.99,5.37649298]
[1753376418173,10.00000001,186.04,186.0,17.55900711]
[1753376418477,10.0,186.03,186.0,17.06900711]
[1753376418667,10.0,186.03,185.99,1e-08]
[1753376418869,10.0,186.01,185.99,1e-08]
[1753376419880,38.92,186.02,185.99,1e-08]
[1753376419881,10.65,186.0,185.99,1e-08]
[1753376420180,10.0,186.0,185.99,1e-08]
[1753376420759,10.0,186.01,185.99,1e-08]
[1753376420954,10.0,186.0,185.99,1e-08]
[1753376422078,10.0,186.01,185.99,1e-08]
[1753376422468,1e-08,186.04,186.01,16.78468397]
[1753376422673,1e-08,186.04,186.02,0.77432314]
[1753376422873,10.00000001,186.04,185.99,1e-08]
[1753376423188,10.0,186.02,185.99,1e-08]
[1753376423479,10.0,186.0,185.99,1e-08]
[1753376425286,48.9,186.01,185.99,1e-08]
[1753376425486,10.0,186.02,185.99,1e-08]
[1753376425783,38.9,186.03,186.0,0.49]
[1753376426091,1e-08,186.04,186.01,0.28432314]
[1753376426268,10.0,186.03,186.01,0.28432314]
[1753376426460,48.9,186.03,185.99,1e-08]
[1753376426663,10.0,186.01,185.99,1e-08]
[1753376427070,38.9,186.03,185.99,1e-08]
[1753376427071,10.0,186.0,185.99,1e-08]
[1753376427265,10.65,186.0,185.99,1e-08]
[1753376427680,10.0,186.0,185.99,1e-08]
[1753376428080,10.0,186.02,185.99,22.44561996]
[1753376428289,38.9,186.03,186.01,16.78468397]
[1753376428486,38.9,186.03,186.02,0.28432314]
[1753376428693,1e-08,186.04,186.02,0.28432314]
[1753376428882,10.00000001,186.04,186.02,0.28432314]
[1753376429086,1e-08,186.04,186.02,0.28432314]
[1753376429287,10.00000001,186.04,186.02,0.28432314]
[1753376429586,10.0,186.02,185.99,0.28432315]
[1753376430690,38.90000001,186.04,186.01,0.28432314]
[1753376431589,10.0,186.02,186.01,0.28432314]
[1753376431905,10.0,186.02,185.99,5.37662114]
[1753376431906,10.0,186.02,185.99,1e-08]
[1753376432269,10.65,186.02,185.99,1e-08]
[1753376432489,0.65,186.01,185.99,1e-08]
[1753376432989,10.65,186.0,185.99,1e-08]
[1753376434191,48.9,186.0,185.99,1e-08]
[1753376434369,49.55,186.0,185.95,0.06]
[1753376434573,10.0,185.96,185.95,0.06]
[1753376434785,48.9,185.96,185.95,0.06]
[1753376434983,54.92750053,185.96,185.95,0.06]
[1753376435784,10.0,185.96,185.95,0.06]
[1753376435986,38.9,185.96,185.95,0.06]
[1753376436185,10.0,185.97,185.95,0.06]
[1753376436693,10.65,185.96,185.95,0.06]
[1753376437269,10.0,185.96,185.95,0.06]
[1753376437489,10.0,185.97,185.95,0.06]
[1753376438492,10.65,185.97,185.95,0.06]
[1753376439573,48.9,185.97,185.95,0.06]
[1753376439768,10.65,185.96,185.95,0.06]
[1753376441498,16.02750053,185.96,185.95,0.06]
[1753376441994,10.65,185.96,185.95,0.06]
[1753376442186,10.0,185.96,185.95,0.06]
[1753376442593,48.9,185.97,185.95,0.06]
[1753376442796,10.0,185.96,185.95,0.06]
[1753376443500,16.02750053,185.96,185.95,0.06]
[1753376445506,49.55,185.96,185.95,0.06]
[1753376446405,38.9,185.96,185.95,0.06]
[1753376446602,48.9,185.96,185.95,0.06]
[1753376447203,49.55,185.96,185.95,0.06]
[1753376448207,54.92750053,185.96,185.95,0.06]
[1753376448807,49.55,185.96,185.95,0.06]
[1753376449604,38.9,185.96,185.95,0.06]
[1753376449805,36.0,185.99,185.95,0.06]
[1753376449997,64.9,185.99,185.95,0.06]
[1753376450306,10.0,185.98,185.95,0.55]
[1753376450509,74.9,185.99,185.95,0.55]
[1753376450695,10.0,185.97,185.95,0.06]
[1753376451406,64.9,185.99,185.95,0.06]
[1753376451614,10.0,185.97,185.95,16.84468397]
[1753376452709,74.9,185.99,185.95,22.22240063]
[1753376452907,74.9,185.99,185.95,5.43771666]
[1753376453105,5.37640685,186.0,185.95,5.43771666]
[1753376453106,10.0,186.0,185.95,5.43771666]
[1753376453408,10.0,185.98,185.95,5.43771666]
[1753376455011,10.0,185.98,185.96,17.06900711]
[1753376455596,48.9,186.0,185.97,0.49]
[1753376455900,10.0,185.99,185.95,8.0081]
[1753376456109,10.0,185.98,185.96,17.06900711]
[1753376456710,10.0,185.99,185.96,17.06900711]
[1753376456901,48.9,186.0,185.96,17.55900711]
[1753376457103,38.9,186.0,185.96,22.93635838]
[1753376457315,10.0,185.99,185.96,22.93635838]
[1753376457512,48.9,186.0,185.98,16.78468397]
[1753376457813,26.0,186.02,185.99,0.28432314]
[1753376458014,10.0,186.02,186.0,0.49]
[1753376458216,48.90000001,186.04,186.01,0.49]
[1753376458396,48.90000001,186.04,185.98,0.28432314]
[1753376458595,48.90000001,186.04,186.01,0.28432314]
[1753376459105,10.0,186.02,185.97,16.78468397]
[1753376459293,0.69,186.01,185.97,17.06900711]
[1753376459704,0.69,186.01,185.95,1.7045]
[1753376459705,10.0,185.98,185.95,1.7045]
[1753376459905,10.69,185.98,185.96,16.78468397]
[1753376460109,10.0,185.98,185.96,16.78468397]
[1753376460714,18.81336036,186.04,185.97,0.77432314]
[1753376460715,1e-08,186.04,185.97,0.77432314]
[1753376460918,10.00000001,186.04,186.0,0.28432314]
[1753376461096,1e-08,186.04,186.03,0.28432314]
[1753376461293,1e-08,186.04,186.03,0.77432314]
[1753376461693,1e-08,186.04,186.03,19.12180711]
[1753376462225,1e-08,186.04,186.03,18.63180711]
[1753376462427,1e-08,186.04,186.03,17.06900711]
[1753376463228,1e-08,186.04,186.03,17.55900711]
[1753376463431,1e-08,186.04,186.03,22.93448418]
[1753376463931,1e-08,186.04,186.03,17.55900711]
[1753376464129,1e-08,186.04,186.03,17.06900711]
[1753376464704,1e-08,186.04,186.01,16.92684554]
[1753376464917,1e-08,186.04,186.02,0.14216157]
[1753376466025,1e-08,186.04,186.02,6.00791192]
[1753376467828,1e-08,186.04,186.03,0.63216157]
[1753376469627,1e-08,186.04,186.03,6.14980021]
[1753376470835,1e-08,186.04,186.01,16.78468397]
[1753376471126,10.0,186.01,186.0,16.78468397]
[1753376471314,10.69,186.01,185.96,50.67742149]
[1753376471635,0.69,186.0,185.96,50.67742149]
[1753376471811,10.69,186.03,185.96,50.67742149]
[1753376472017,10.0,186.01,185.97,16.78468397]
[1753376472211,10.0,186.02,185.98,0.28432314]
[1753376472404,10.0,186.03,185.98,0.28432314]
[1753376472720,10.0,186.03,185.99,16.78468397]
[1753376472917,10.0,186.03,186.0,0.28432314]
[1753376475202,10.69,186.03,186.0,0.28432314]
[1753376475613,10.69,186.03,186.01,0.28432314]
[1753376475925,38.86000001,186.04,186.01,0.28432314]
[1753376476130,1e-08,186.04,186.01,0.28432314]
[1753376476426,1e-08,186.04,186.03,0.28432314]
[1753376477010,1e-08,186.04,186.03,22.44448418]
[1753376477938,1e-08,186.04,186.03,17.06900711]
[1753376478322,1e-08,186.04,186.03,22.44448418]
[1753376479040,1e-08,186.04,186.03,17.06900711]
[1753376479715,0.69000001,186.04,186.0,17.06900711]
[1753376479916,0.69,186.03,186.0,16.92684554]
[1753376480247,1e-08,186.04,186.0,16.92684554]
[1753376480536,1e-08,186.04,186.01,0.14216157]
[1753376481122,0.69000001,186.04,186.01,0.14216157]
[1753376482214,1e-08,186.04,186.01,5.51819166]
[1753376482937,1e-08,186.04,186.03,5.65980021]
[1753376483613,1e-08,186.04,186.03,6.14980021]
[1753376484948,1e-08,186.04,186.03,7.72230021]
[1753376485120,1e-08,186.04,186.03,51.04453188]
[1753376486222,1e-08,186.04,186.03,53.77864812]
[1753376487026,1e-08,186.04,186.03,92.63864812]
[1753376487227,1e-08,186.04,186.03,66.63864812]
[1753376487428,1e-08,186.08,186.07,43.06900711]
[1753376487638,0.03,186.12,186.08,0.14216157]
[1753376487827,0.03,186.12,186.11,0.28432314]
[1753376488140,0.03,186.12,186.11,55.92900711]
[1753376488325,0.03,186.12,186.11,17.06900711]
[1753376488527,0.69,186.12,186.11,17.06900711]
[1753376488750,0.03,186.12,186.11,17.06900711]
[1753376489225,0.69,186.12,186.11,0.28432314]
[1753376489558,10.0,186.11,186.04,5.37518813]
[1753376489720,0.69,186.12,186.0,0.49]
[1753376489721,10.0,186.08,186.0,0.49]
[1753376490049,0.66,186.07,186.01,38.84]
[1753376490221,0.66,186.07,186.02,17.06900711]
[1753376490738,0.66,186.07,186.02,17.27468397]
[1753376490937,10.0,186.08,186.03,0.77432314]
[1753376491135,10.0,186.08,186.05,0.28432314]
[1753376491433,10.66,186.07,186.05,0.28432314]
[1753376491823,10.66,186.06,186.05,0.14216157]
[1753376492021,10.0,186.06,186.05,0.14216157]
[1753376492726,0.66,186.07,186.05,0.14216157]
[1753376492921,10.0,186.08,186.05,0.14216157]
[1753376493126,10.66,186.08,186.04,0.28432314]
[1753376493344,10.0,186.08,186.04,0.28432314]
[1753376493548,10.66,186.08,186.04,0.28432314]
[1753376494043,0.66,186.07,186.04,0.28432314]
[1753376494249,0.66,186.06,186.04,0.28432314]
[1753376494628,10.66,186.08,186.04,0.28432314]
[1753376495122,15.37407444,186.08,186.04,0.28432314]
[1753376495341,0.66,186.07,186.04,0.28432314]
[1753376495529,10.0,186.09,186.06,0.28432314]
[1753376495728,10.0,186.08,186.06,0.28432314]
[1753376495932,10.66,186.09,186.06,0.28432314]
[1753376496136,10.0,186.08,186.06,0.28432314]
[1753376497348,10.0,186.1,186.07,16.78468397]
[1753376497547,0.03,186.12,186.09,16.78468397]
[1753376497752,0.03,186.12,186.1,0.28432314]
[1753376497933,0.03,186.12,186.11,17.06900711]
[1753376498248,0.03,186.12,186.11,17.55900711]
[1753376499158,1e-08,186.12,186.11,22.93217351]
[1753376499334,0.03,186.16,186.15,16.78468397]
[1753376499539,0.03,186.16,186.15,56.44620829]
[1753376499744,0.03,186.16,186.15,17.60620829]
[1753376499937,0.03,186.16,186.15,55.90900711]
[1753376501334,0.03,186.16,186.15,61.28101892]
[1753376501533,0.03,186.16,186.15,62.3082201]
[1753376502549,0.03,186.16,186.15,61.77101892]
[1753376504330,0.03,186.16,186.15,69.32781892]
[1753376505355,0.03,186.16,186.15,61.26101892]
[1753376506445,0.03,186.16,186.15,61.75101892]
[1753376507550,1e-08,186.16,186.15,61.75101892]
[1753376508250,1e-08,186.16,186.15,149.65101892]
[1753376510540,7.32,186.3,186.2,23.06658397]
[1753376510743,7.98,186.31,186.23,0.28432314]
[1753376510936,0.66,186.3,186.25,17.06900711]
[1753376511139,7.32,186.27,186.25,17.06900711]
[1753376511353,0.66,186.29,186.25,17.06900711]
[1753376511552,33.32,186.31,186.25,17.06900711]
[1753376511553,0.66,186.28,186.25,17.06900711]
[1753376512450,0.66,186.28,186.27,17.06900711]
[1753376512970,7.32,186.25,186.2,16.78468397]
[1753376513140,7.32,186.25,186.21,0.28432314]
[1753376513334,7.98,186.28,186.21,0.28432314]
[1753376513539,7.98,186.28,186.23,17.06900711]
[1753376513736,0.66,186.27,186.23,17.06900711]
[1753376514135,7.98,186.29,186.23,17.06900711]
[1753376514454,7.98,186.27,186.26,0.28432314]
[1753376514658,0.66,186.27,186.26,0.28432314]
[1753376514954,0.66,186.29,186.26,0.28432314]
[1753376515137,7.32,186.3,186.26,0.28432314]
[1753376515138,0.66,186.28,186.26,0.28432314]
[1753376515953,7.98,186.34,186.29,0.28432314]
[1753376516267,0.66,186.33,186.29,0.28432314]
[1753376516473,7.98,186.32,186.29,0.28432314]
[1753376516636,0.66,186.31,186.29,5.65224138]
[1753376517077,7.32,186.28,186.24,6.93503992]
[1753376517239,0.66,186.27,186.26,17.06900711]
[1753376518058,7.32,186.28,186.26,17.06900711]
[1753376518262,0.7,186.29,186.26,22.43773531]
[1753376518485,7.32,186.3,186.26,22.43773531]
[1753376518644,7.32,186.29,186.26,22.43773531]
[1753376519277,0.7,186.32,186.26,22.92773531]
[1753376519278,8.02,186.32,186.26,22.92773531]
[1753376519573,7.32,186.3,186.26,22.92773531]
[1753376519874,7.32,186.32,186.27,0.49]
[1753376520074,7.32,186.32,186.29,17.06900711]
[1753376520253,7.32,186.27,186.18,4.91912262]
[1753376520452,7.32,186.27,186.17,6.8039]
[1753376520453,7.32,186.23,186.15,1.5072]
[1753376520761,0.7,186.26,186.14,13.92036766]
[1753376520762,7.32,186.18,186.14,44.15230041]
[1753376520959,0.7,186.17,186.14,44.15230041]
[1753376521165,8.02,186.2,186.14,57.58305145]
[1753376521349,7.32,186.21,186.15,16.78468397]
[1753376521549,7.32,186.22,186.15,16.78468397]
[1753376521750,1.5877,186.28,186.14,58.61028149]
[1753376521751,8.02,186.25,186.18,0.14216157]
[1753376522064,8.02,186.25,186.2,0.28432314]
[1753376522283,7.32,186.24,186.22,17.06900711]
[1753376522645,8.02,186.25,186.22,17.06900711]
[1753376522968,1.5877,186.28,186.22,17.06900711]
[1753376522969,7.32,186.27,186.22,56.33900711]
[1753376523155,7.32,186.27,186.22,55.84900711]
[1753376523859,0.7,186.26,186.22,17.06900711]
[1753376524063,7.32,186.25,186.21,5.37028086]
[1753376524261,8.02,186.24,186.22,0.28432314]
[1753376524474,5.36775437,186.3,186.22,0.28432314]
[1753376524475,7.32,186.25,186.22,0.28432314]
[1753376524864,7.32,186.26,186.22,0.28432314]
[1753376525062,7.32,186.24,186.22,0.28432314]
[1753376525559,0.7,186.25,186.22,0.28432314]
[1753376525760,8.02,186.24,186.22,0.28432314]
[1753376526162,0.7,186.23,186.22,0.28432314]
[1753376526355,0.7,186.23,186.22,5.65431562]
[1753376526555,0.7,186.23,186.22,0.28432314]
[1753376527572,7.32,186.26,186.22,39.06432314]
[1753376527772,7.32,186.26,186.24,0.28432314]
[1753376528158,8.02,186.26,186.24,0.28432314]
[1753376528665,8.02,186.26,186.25,22.43813462]
[1753376529775,7.32,186.26,186.25,22.43813462]
[1753376529978,7.32,186.24,186.22,16.78468397]
[1753376530175,0.7,186.23,186.22,16.78468397]
[1753376530675,0.7,186.23,186.22,17.06900711]
[1753376531283,0.7,186.23,186.22,22.43899959]
[1753376531952,7.32,186.25,186.22,22.43899959]
[1753376532178,7.32,186.24,186.22,22.43899959]
[1753376532367,0.7,186.24,186.22,22.43899959]
[1753376532574,8.02,186.24,186.23,0.28432314]
[1753376532879,0.7,186.24,186.23,0.28432314]
[1753376533082,8.02,186.24,186.23,0.28432314]
[1753376533295,8.02,186.24,186.23,5.65402726]
[1753376533453,7.32,186.26,186.23,5.65402726]
[1753376533654,7.32,186.25,186.23,5.65402726]
[1753376533871,8.02,186.25,186.23,5.65402726]
[1753376534084,0.7,186.25,186.23,5.65402726]
[1753376534472,8.02,186.25,186.23,5.65402726]
[1753376534664,7.32,186.26,186.23,5.65402726]
[1753376534869,8.02,186.26,186.23,5.65402726]
[1753376535755,0.7,186.25,186.23,5.65402726]
[1753376536780,7.32,186.23,186.22,16.92684554]
[1753376536983,8.02,186.23,186.22,22.29683802]
[1753376537191,8.02,186.25,186.22,22.43899959]
[1753376537382,8.02,186.25,186.23,0.28432314]
[1753376537572,8.02,186.24,186.23,0.28432314]
[1753376538374,0.7,186.24,186.23,0.28432314]
[1753376538565,8.02,186.24,186.23,0.28432314]
[1753376538769,7.32,186.25,186.23,0.28432314]
[1753376539075,7.32,186.26,186.25,0.28432314]
[1753376539389,8.02,186.26,186.25,0.28432314]
[1753376539591,8.02,186.26,186.22,44.14990084]
[1753376539824,8.02,186.25,186.21,0.14216157]
[1753376539973,8.02,186.24,186.21,0.14216157]
[1753376540175,8.02,186.23,186.21,0.14216157]
[1753376540495,8.02,186.23,186.21,5.51240375]
[1753376540890,8.02,186.22,186.2,0.14216157]
[1753376541103,7.32,186.21,186.2,0.28432314]
[1753376541272,8.02,186.21,186.2,0.28432314]